Cogmind - Beta 14 @@@ ROGUE MODE // 2024.12.26 @ 04:16:07 Player: Berg Result: Destroyed by as-30512 with Assembled Heavy Rifle Performance ------------- Evolutions (1) 500 Regions Visited (5) 1000 Robots Destroyed (41) 205 Value Destroyed (1055) 1055 Prototype IDs (25) 500 Alien Tech Used (0) 0 Bonus (300) 300 TOTAL SCORE: 3560 Bonus ------- Aligned with FarCom 300 Cogmind --------- Core Integrity 0/400 Matter 300/300 Energy 90/100 System Corruption 0% Temperature Cool (20) Movement Core (750) Ox14 Location -9/Exiles Parts ------- > --- POWER (1) -------- (None) > --- PROPULSION (3) --- (None) > --- UTILITY (3) ------ High-capacity Storage Unit > --- WEAPON (2) ------- Longsword +1 > --- INVENTORY (20) --- Improved Ion Engine Light Treads Light Treads Improved Treads Large Matter Pod (150) Hardened Light Armor Plating Hardened Light Armor Plating Hardened Light Armor Plating Hardened Light Armor Plating Hardened Light Armor Plating Hardened Light Armor Plating Hardened Light Armor Plating Hardened Light Armor Plating Beam Cannon Heavy Assault Rifle Shotgun Shotgun Shotgun Light Cannon Rocket Launcher Peak State ------------ > --- POWER ------------ Improved Ion Engine > --- PROPULSION ------- Light Treads Light Treads Light Treads > --- UTILITY ---------- High-capacity Storage Unit Seismic Detector Hardened Light Armor Plating > --- WEAPON ----------- Beam Rifle Longsword +1 > --- INVENTORY -------- Improved Ion Engine Light Treads Light Treads Improved Treads Large Matter Pod Hardened Light Armor Plating Hardened Light Armor Plating Hardened Light Armor Plating Hardened Light Armor Plating Hardened Light Armor Plating Hardened Light Armor Plating Hardened Light Armor Plating Hardened Light Armor Plating Beam Cannon Heavy Assault Rifle Shotgun Shotgun Shotgun Light Cannon Rocket Launcher [Rating: 22] Favorites ----------- Power Improved Ion Engine Engine Improved Ion Engine Propulsion Light Treads Treads Light Treads Utility Seismic Detector Device Seismic Detector Storage High-capacity Storage Unit Protection Hardened Light Armor Plating Weapon Beam Rifle Energy Gun Beam Rifle Ballistic Gun Shotgun Ballistic Cannon Light Cannon Slashing Weapon Longsword +1 Build | -11 -10 -10 -9 -9 -9 ------- Run | Yrd Mat Min Mat Min Exi Slots Evolved 2 | . . . 2 . . Power . | . . . . . . Propulsion 1 | . . . 1 . . Utility 1 | . . . 1 . . Weapon . | . . . . . . Parts Attached 28 | 7 6 . 13 . 2 Power 4 | 1 1 . 2 . . Engine 4 | 1 1 . 2 . . Core . | . . . . . . Reactor . | . . . . . . Propulsion 8 | 2 1 . 5 . . Treads 8 | 2 1 . 5 . . Leg . | . . . . . . Wheel . | . . . . . . Hover . | . . . . . . Flight . | . . . . . . Utility 6 | 2 1 . 3 . . Device 2 | 1 . . 1 . . Storage 2 | 1 1 . . . . Processor . | . . . . . . Hackware . | . . . . . . Protection 2 | . . . 2 . . Artifact . | . . . . . . Weapon 10 | 2 3 . 3 . 2 Energy Gun 4 | 2 1 . 1 . . Energy Cannon . | . . . . . . Ballistic Gun 4 | . 2 . 2 . . Ballistic Cannon 1 | . . . . . 1 Launcher . | . . . . . . Special Weapon . | . . . . . . Impact Weapon . | . . . . . . Slashing Weapon 1 | . . . . . 1 Piercing Weapon . | . . . . . . Special Melee Weapon . | . . . . . . Unidentified Prototypes . | . . . . . . Parts Lost 9 | . . . 2 . 7 Power 2 | . . . 1 . 1 Propulsion 4 | . . . 1 . 3 Utility 2 | . . . . . 2 Weapon 1 | . . . . . 1 Highest Loss Streak 7 | . . . 1 . 7 To Critical Strikes 1 | . . . . . 1 Average Slot Usage (%) 97 | . 99 100 95 100 98 Engine 11 | . 13 14 11 11 10 Treads 29 | . 28 28 28 33 32 Device 11 | . 14 14 11 11 10 Storage 11 | . 14 14 11 11 11 Protection 7 | . . . 10 11 10 Energy Gun 11 | . 13 14 11 11 10 Ballistic Gun 11 | . 14 14 11 11 8 Peak Build Rating 22 | 6 9 9 16 16 22 Average Rating 12 | 4 7 9 13 16 17 On Entrance 9 | . 6 9 9 16 16 Naked Turns . | . . . . . . Heaviest Build 59 | 12 49 49 59 59 59 Greatest Support 60 | 40 40 40 60 60 60 Greatest Overweight (x) 3 | 3 1 1 1 . 2 Average Overweight (x) . | . . 1 . . . Largest Inventory Capacity 20 | 8 20 20 20 20 20 Average Capacity 19 | 7 18 20 20 20 20 Most Carried 20 | 6 11 12 20 20 20 Average Carried 14 | 4 8 11 15 20 19 Final Capacity 20 | 8 20 20 20 20 20 Final Carried 20 | 6 11 12 20 20 20 Class Distribution -------------------- 52% | Mutant 47% | Scavenger-Mutant Dominant Class ---------------- Mutant | -10/Materials Mutant | -10/Mines Mutant | -9/Materials Scavenger-Mutant | -9/Mines Scavenger-Mutant | -9/Exiles Resources | -11 -10 -10 -9 -9 -9 ----------- Run | Yrd Mat Min Mat Min Exi Matter Collected 957 | 270 68 168 451 . . Remotely . | . . . . . . Salvage Created 1651 | 115 118 . 1369 . 49 Parts 88 | 9 14 . 65 . . Haulers Intercepted 1 | . . . 1 . . Recyclers Shooed 7 | . 1 . 6 . . Parts Field Recycled . | . . . . . . Retrieved Matter . | . . . . . . Parts Self-Destructed . | . . . . . . Prevented . | . . . . . . Kills | -11 -10 -10 -9 -9 -9 ------- Run | Yrd Mat Min Mat Min Exi Combat Hostiles Destroyed 32 | . 4 . 25 . 3 Melee 3 | . . . . . 3 Guns 29 | . 4 . 25 . . Classes Destroyed 11 | 2 4 . 3 . 2 Worker 1 | . 1 . . . . Tunneler 2 | 2 . . . . . Hauler 1 | . . . 1 . . Recycler 5 | 1 . . 4 . . Operator 1 | . . . 1 . . Watcher 1 | . 1 . . . . Swarmer 6 | . 3 . 3 . . Grunt 15 | . 1 . 14 . . Sentry 8 | . . . 8 . . Zionite 1 | . . . . . 1 Assembled 3 | . . . . . 3 Best Kill Streak 4 | 3 3 . 4 . 3 Combat Bots Only 3 | . 3 . 3 . 3 Max Kills in Single Turn 2 | 1 2 . 1 . 1 Gunslinging 1 | . 1 . . . . Exploded . | . . . . . . Melee 1 | . . . . . 1 Uniques/NPCs Destroyed . | . . . . . . Combat | -11 -10 -10 -9 -9 -9 -------- Run | Yrd Mat Min Mat Min Exi Hostile Shots Fired 168 | . 8 . 95 . 65 Missed 48 | . 3 . 28 . 17 Damage Taken 1662 | . 56 . 830 . 776 Core 414 | . . . 135 . 279 Absorbed by Shields . | . . . . . . Redirected to Shielding 44 | . . . 44 . . Core Remaining (%) 100 | 100 . 100 . . . Volleys Fired 107 | 7 10 . 87 . 3 Largest 2 | 1 2 . 2 . 1 Hottest 79 | 50 73 . 79 . 35 Shots Fired 203 | 7 20 . 173 . 3 Gun 200 | 7 20 . 173 . . Cannon 3 | . . . . . 3 Launcher . | . . . . . . Special . | . . . . . . Kinetic 99 | . 10 . 86 . 3 Thermal 104 | 7 10 . 87 . . Explosive . | . . . . . . Electromagnetic . | . . . . . . Robot Hit Streak 10 | 5 8 . 10 . . Robot Miss Streak 3 | 2 2 . 3 . . Penetration Max . | . . . . . . Secondary Targets 1 | . 1 . . . . Max Gunslinging Chain 1 | . 1 . . . . Shots Hit Robots 150 | 5 14 . 124 . 7 Core Hits 71 | 4 8 . 55 . 4 Critical Kills 1 | . . . 1 . . Critical Parts Destroyed 1 | . . . 1 . . Critical Strikes 7 | 1 . . 6 . . Burn 5 | 1 . . 4 . . Destroy 2 | . . . 2 . . Melee Attacks 24 | . . . . . 24 Impact . | . . . . . . Slashing 24 | . . . . . 24 Piercing . | . . . . . . Sneak Attacks . | . . . . . . Combat Hostiles . | . . . . . . Follow-up Attacks . | . . . . . . Damage Inflicted 2517 | 63 218 . 1868 . 368 Guns 2149 | 63 218 . 1868 . . Cannons . | . . . . . . Explosions . | . . . . . . Melee 368 | . . . . . 368 Ramming . | . . . . . . Kinetic 1330 | . 127 . 1203 . . Thermal 819 | 63 91 . 665 . . Explosive . | . . . . . . Electromagnetic . | . . . . . . Impact . | . . . . . . Slashing 368 | . . . . . 368 Piercing . | . . . . . . Highest Corruption . | . . . . . . Average Corruption . | . . . . . . Corruption Purged . | . . . . . . Corruption Blocked . | . . . . . . Overload Shots . | . . . . . . Overflow Damage 102 | . . . . . 102 Projectiles . | . . . . . . Explosions 85 | . . . . . 85 Melee 17 | . . . . . 17 Knockbacks . | . . . . . . Impact . | . . . . . . Kinetic . | . . . . . . Secondary . | . . . . . . Self-Inflicted Damage 114 | . . . . . 114 Shots 1 | . . . . . 1 Rammed . | . . . . . . Targets Rammed . | . . . . . . Kicked . | . . . . . . Crushed . | . . . . . . Highest Temperature 279 | 40 54 . 279 . . Average Temperature 51 | 15 18 . 55 . . Received Heat Transfer 485 | . 24 . 381 . 80 Siege Activations . | . . . . . . Robots Corrupted . | . . . . . . Combat Hostiles . | . . . . . . Parts Fried . | . . . . . . Impact Corruptions . | . . . . . . Robots Melted . | . . . . . . Combat Hostiles . | . . . . . . Parts Melted 3 | 1 . . 2 . . Heat Transferred 2516 | 259 259 . 1998 . . Parts Sabotaged . | . . . . . . Parts Stolen . | . . . . . . Parts Stripped . | . . . . . . Power Chain Reactions . | . . . . . . Alert | -11 -10 -10 -9 -9 -9 ------- Run | Yrd Mat Min Mat Min Exi Peak Influence 365 | 15 91 . 365 123 . Initial 123 | . 9 . . 123 . Average 95 | 7 44 . 159 123 . Maximum Alert Level 1 | . . . 1 . . Low Security (%) 80 | 100 100 100 61 100 . Level 1 19 | . . . 38 . . Level 2 . | . . . . . . Level 3 . | . . . . . . Level 4 . | . . . . . . Level 5 . | . . . . . . High Security . | . . . . . . Max Security . | . . . . . . Squads Dispatched 3 | . 1 . 2 . . Investigation . | . . . . . . Extermination . | . . . . . . Reinforcement 3 | . 1 . 2 . . Assault . | . . . . . . Garrison . | . . . . . . Intercept . | . . . . . . Searches Triggered . | . . . . . . Construction Impeded . | . . . . . . Haulers Reinforced . | . . . . . . Active Scanning Responses . | . . . . . . Cargo Convoy Interrupts . | . . . . . . Stealth | -11 -10 -10 -9 -9 -9 --------- Run | Yrd Mat Min Mat Min Exi Distress Signals 2 | . . . 2 . . Communications Jammed . | . . . . . . Distress Signals . | . . . . . . Times Spotted 59 | . 8 . 42 . 9 Peak Tracking Total 10 | . 3 . 5 . 10 Tactical Retreats 4 | . . . 4 . . Traps | -11 -10 -10 -9 -9 -9 ------- Run | Yrd Mat Min Mat Min Exi Traps Triggered 1 | . 1 . . . . Indirectly . | . . . . . . Trap Hack Attempts . | . . . . . . Triggered . | . . . . . . Disarmed . | . . . . . . Reprogrammed . | . . . . . . Reused . | . . . . . . Traps Extracted . | . . . . . . Installed . | . . . . . . Triggered . | . . . . . . Machines | -11 -10 -10 -9 -9 -9 ---------- Run | Yrd Mat Min Mat Min Exi Machines Disabled 4 | . . . 1 . 3 Max in Single Turn 2 | . . . 1 . 2 Machines Repaired . | . . . . . . Machines Dismantled . | . . . . . . Machines Sabotaged . | . . . . . . Overloaded Fab Kills . | . . . . . . Hacking | -11 -10 -10 -9 -9 -9 --------- Run | Yrd Mat Min Mat Min Exi Machines Accessed 15 | . 3 1 6 . 5 Terminals 9 | . 2 1 6 . . Fabricators . | . . . . . . Repair Stations . | . . . . . . Recycling Units 1 | . 1 . . . . Scanalyzers . | . . . . . . Garrison Access . | . . . . . . Total Hacks 84 | . 12 2 20 . 50 Successful 62 | . 4 . 8 . 50 Failed 21 | . 7 2 12 . . Catastrophic 2 | . 1 . 1 . . Database Lockouts 1 | . 1 . . . . Manual 28 | . 9 . 18 . 1 Terminals 32 | . 10 2 20 . . Fabricators . | . . . . . . Repair Stations . | . . . . . . Recycling Units 2 | . 2 . . . . Scanalyzers . | . . . . . . Garrison Access . | . . . . . . Terminal Hacks 59 | . 4 . 5 . 50 Record 49 | . . . . . 49 Robot Analysis 2 | . 1 . 1 . . Prototype ID Bank 1 | . . . 1 . . Terminal Index 2 | . 1 . 1 . . Alert Level 1 | . . . 1 . . Unreport Threat 1 | . . . 1 . . Locate Traps 1 | . 1 . . . . Zone Layout 1 | . 1 . . . . Derelict Proto ID Bank 1 | . . . . . 1 Fabricator Hacks . | . . . . . . Repair Station Hacks . | . . . . . . Recycling Unit Hacks . | . . . . . . Scanalyzer . | . . . . . . Garrison Access Hacks . | . . . . . . Unauthorized Hacks 3 | . . . 3 . . Terminals 3 | . . . 3 . . Botnet 3 | . . . 3 . . Fabricators . | . . . . . . Repair Stations . | . . . . . . Recycling Units . | . . . . . . Scanalyzers . | . . . . . . Garrison Access . | . . . . . . Data Cores Recovered . | . . . . . . Used . | . . . . . . Hacking Detections 10 | . 3 1 6 . . Full Trace Events 1 | . . . 1 . . Feedback Events . | . . . . . . Feedback Blocked . | . . . . . . Robot Schematics Acquired . | . . . . . . Robots Built . | . . . . . . Authchips . | . . . . . . Time . | . . . . . . Total Robot Build Rating . | . . . . . . Part Schematics Acquired . | . . . . . . Parts Built . | . . . . . . Authchips . | . . . . . . Time . | . . . . . . Total Part Build Rating . | . . . . . . Parts Repaired . | . . . . . . Time . | . . . . . . Parts Recycled . | . . . . . . Recycled Matter . | . . . . . . Retrieved Matter . | . . . . . . Retrieved Components . | . . . . . . Parts Scanalyzed . | . . . . . . Part Schematics Acquired . | . . . . . . Parts Damaged . | . . . . . . Bothacking | -11 -10 -10 -9 -9 -9 ------------ Run | Yrd Mat Min Mat Min Exi Used RIF Installer . | . . . . . . Robots Hacked . | . . . . . . Non-combat . | . . . . . . Combat . | . . . . . . Robot Hacks Applied . | . . . . . . Relay Couplers Released . | . . . . . . Fabnet Peak Effective % . | . . . . . . Robots Rewired . | . . . . . . Allies Hacked . | . . . . . . Hacks Repelled . | . . . . . . Allies | -11 -10 -10 -9 -9 -9 -------- Run | Yrd Mat Min Mat Min Exi Total Allies . | . . . . . . Largest Group . | . . . . . . Highest-Rated Group . | . . . . . . Highest-Rated Ally . | . . . . . . Total Orders . | . . . . . . Ally Attacks . | . . . . . . Total Damage . | . . . . . . Kills . | . . . . . . Allies Corrupted . | . . . . . . Allies Melted . | . . . . . . Intel | -11 -10 -10 -9 -9 -9 ------- Run | Yrd Mat Min Mat Min Exi Robot Analysis Total 2 | . 1 . 1 . . Derelict Logs Recovered 4 | . . 3 . 1 . Drone Launches . | . . . . . . Drone Recoveries . | . . . . . . Exploration | -11 -10 -10 -9 -9 -9 ------------- Run | Yrd Mat Min Mat Min Exi Turns Passed 6190 | 116 892 1014 2330 142 1696 Spaces Moved 2570 | 57 200 417 846 73 977 Core 13 | 13 . . . . . Treads 2557 | 44 200 417 846 73 977 Legs . | . . . . . . Wheels . | . . . . . . Hover . | . . . . . . Flight . | . . . . . . Fastest Speed 50 | 50 160 240 160 160 160 Average Speed 182 | 147 220 240 175 160 160 Slowest Speed 320 | 200 240 240 240 160 320 Overloaded Moves . | . . . . . . Propulsion Burnouts . | . . . . . . Robots Hopped . | . . . . . . Cave-ins Triggered . | . . . . . . Exploration Rate (%) 47 | 6 26 85 62 10 96 Regions Visited 5 Branch Regions 3 Pre-discovered Areas 2 | . . 1 . . 1 Known Exits Taken 1 | . . . 1 . . Unknown Exits Taken 4 | 1 1 1 . 1 . Scrap Searched 1 | . . 1 . . . Spaces Dug 9 | . . . . . 9 Terrain Destroyed 45 | . . . . . 45 Melee 9 | . . . . . 9 Projectile . | . . . . . . AOE 36 | . . . . . 36 Terrain Rammed . | . . . . . . Walls Destroyed . | . . . . . . Machines Disabled . | . . . . . . Actions | -11 -10 -10 -9 -9 -9 --------- Run | Yrd Mat Min Mat Min Exi Total 3846 | 79 631 432 1526 98 1080 Wait 1070 | 3 406 13 553 26 69 Move 2565 | 56 199 416 845 72 977 Hop . | . . . . . . Pick Up 30 | 5 7 2 14 . 2 Fast Attach 15 | 7 3 . 5 . . Attach 3 | . 1 . 2 . . Detach 3 | 1 . . 2 . . Swap 10 | . 2 . 6 . 2 Drop 18 | . 3 1 12 . 2 Fire 107 | 7 10 . 87 . 3 Melee 24 | . . . . . 24 Ram . | . . . . . . Kick . | . . . . . . Crush . | . . . . . . Escape Stasis . | . . . . . . Rewire 1 | . . . . . 1 Trap . | . . . . . . Miscellaneous . | . . . . . . Route ------- -11/Scrapyard -10/Materials -10/Mines (discovered 2 exits: *Mat x2) -9/Materials (discovered 3 exits: [*Mat x2] / *Min) -9/Mines -9/Exiles (discovered 2 exits: [*Min x2]) History --------- Turn | Location | Event 19 | -11/Scrapyard | Discovered new exit (range 15) 117 | -11/Scrapyard | Entered Materials 262 | -10/Materials | Central database locked down 316 | -10/Materials | Build established: Mutant 637 | -10/Materials | Discovered new exit (range 9) 1009 | -10/Materials | Entered Mines 1009 | -10/Mines | Discovered new exit (range 8) 1113 | -10/Mines | Received a Rocket Launcher from a helpful Derelict 1522 | -10/Mines | Learned location of Zion (-7) 1958 | -10/Mines | Learned location of 1 exit from Materials 1965 | -10/Mines | Learned Materials trap positions 2003 | -10/Mines | Discovered new exit (range 10) 2023 | -10/Mines | Entered Materials 2023 | -9/Materials | Evolved 2 slots: Propulsion x1, Utility x1 2024 | -9/Materials | Identified exit to Mines 2025 | -9/Materials | Loaded intel: 21 trap records 3031 | -9/Materials | Discovered new exit (range 16) 3561 | -9/Materials | Build established: Scavenger-Mutant 3821 | -9/Materials | Discovered new exit (range 6) 4353 | -9/Materials | Entered Mines 4371 | -9/Mines | Met a Derelict bent on vengeance 4473 | -9/Mines | Learned location of 1 exit from Materials 4484 | -9/Mines | Deemed a non-threat by the Exiles lab entrance 4487 | -9/Mines | Discovered new exit (range 5) 4495 | -9/Mines | Entered Exiles 4519 | -9/Exiles | Discovered new exit (range 15) 4556 | -9/Exiles | Met 8R-AWN 4604 | -9/Exiles | Met EX-HEX 4698 | -9/Exiles | Met EX-DEC 4734 | -9/Exiles | Visited The Gauntlet 4973 | -9/Exiles | Discovered new exit (range 14) 5389 | -9/Exiles | Met EX-BIN 5428 | -9/Exiles | Aligned with FarCom system 5429 | -9/Exiles | Given EX-Vault access code 5525 | -9/Exiles | Opened EX-Vault 5598 | -9/Exiles | Found Longsword +1 5632 | -9/Exiles | Warned to stay clear of 0b10 Research branches 6115 | -9/Exiles | Attacked by the Exiles 6173 | -9/Exiles | Core integrity fell below 50% 6188 | -9/Exiles | Core integrity fell below 20% 6191 | -9/Exiles | Destroyed by as-30512 with Assembled Heavy Rifle Last Messages --------------- sneak in here and steal a few of HEX's prototypes. 06114_ Testing Apparatus damaged. 06115_ EXILES: Hostile robot within lab perimeter. Defensive protocols time, folks! 06117_ AM-PHS destroyed. 06147_ EX-Generator explodes. 06147_ Imp. Ion Engine destroyed. 06147_ Destroyed Imp. Ion Engine. 06147_ Testing Apparatus damaged. 06154_ The unstable cave ceiling collapses. 06160_ Critical hit (Destroy). 06160_ Lgt. Treads destroyed. 06175_ Hrd. Light Armor Plating destroyed. 06176_ Beam Rifle destroyed. 06179_ Seismic Detector destroyed. 06181_ Lgt. Treads destroyed. 06183_ as-07340 destroyed. 06187_ as-80078 destroyed. 06189_ Destroyed Asb. Hover Unit. 06191_ as-56504 destroyed. Map ----- +----------------------------------------------------+ | ??????????????????????????????????????????## #?? | | ???????????????????????????????????????????# #?? | | ???????????????????????????????????????????# #?? | | ???????????????????????????????????????????# #?? | | ???????????#######???????????????####??????# #?? | | ??????????#"""""""#????""""""???#""""""????# #?? | | ??????????#"" ""#??#"""""""#??#"""""""#??# #?? | | ??????????#" "#"""""""" "#??#" """"#??# #?? | | ??????????#"" ""#""#""" """#??#"" """#??# #?? | | ???????????"" ""#""#"" ""????"" ""???# #?? | | ?????########"""###""###"""########"""###### ### | | ?????#"""" "" """"""" """""""" """""" """ | | ?????#" """""" """"""" | | ?????#""" | | ?????#"""" | | ?????#"" | | ?????#""" "" "" | | ?????#"" """ """""" " """"" " """" " | | ?????########"""%####""""""###""###"""########"""# | | ??????????#"" ""#?##"" ""#""#"" ""????"" " | | ??????????#""" ####""" ""#""#""" ""#??#"" "" | | ??????????#" " " #" """"""""#" " "#??#"""""" | | ??????????#""" " """"""""#""?"""""""#???"" """ | | ??????????#"""" """"""""#???"""""""#???"""""" | | ??????????#####;;;#;;;;##"####""#??####??????###?? | | ??????????????# ; aa%@ """""#????????????????? | | ??????????????# ; a a """"""""#????????????????? | | ??????????????# ; ;;########?????????????????? | | ??????????????# ;;;;;;##????????????????????????? | | | | | | | | | | | | | | | | | | | | | | | | | | | | | | | | | | | | | | | | | | | +----------------------------------------------------+ Best States ------------- Heat Dissipation 28 Energy Generation 12 Energy Capacity 265 Matter Stores 300 Matter Capacity 300 Sight Range 16 Terrain Scan Density 10 Armor Coverage 150 Propulsion Shielding 33 Evasion (%) 40 Recoil Reduction 3 Item Schematics ----------------- None Robot Schematics ------------------ None Fabricated ------------ Nothing Alien Tech Used ----------------- None Achievements -------------- None Challenges ------------ None Game ------ Seed MetafieldBottomlessAirjet Manual? 0 Play Time 00:42:31 Cumulative 73.5 hours Start 2024.12.26 @ 03:33:46 End 2024.12.26 @ 04:16:07 Sessions 1 Manual Loads 0 Difficulty Rogue Special Mode None Game No. 73 Rogue 73 Adventurer 0 Explorer 0 Win Type - Total 0 Types 0/0/0/0/0/0/0/0/0 Lore% 15 Gallery% 42 Achievement% 36 Wizard Run 0 Options --------- Layout 0 ASCII 0 Keyboard 1 Movement Numpad Keybinds 0 Fullscreen 2 Font 18/SmallcapsGlow Map View 76x50 Zoom Use 0% Tactical HUD 1 Map Filters NONE Filters NONE Steam 1 RUN: 5ed29b1a-33af-4e6b-95e3-9d6827b370fe